Cogmind - Beta 16.1 @@@ ROGUE MODE // 2026.03.03 @ 01:35:01 Player: Deloads Result: Self-destructed Performance ------------- Evolutions (5) 2500 Regions Visited (4) 800 Robots Destroyed (6) 30 Value Destroyed (107) 107 Prototype IDs (0) 0 Alien Tech Used (0) 0 Bonus (0) 0 TOTAL SCORE: 3437 Bonus ------- None Cogmind --------- Core Integrity 619/1000 Matter 232/300 Energy 0/100 System Corruption 0% Temperature Cool (0) Movement Core (50) Location -5/Factory Parts ------- > --- POWER (2) -------- (None) > --- PROPULSION (6) --- (None) > --- UTILITY (7) ------ Target Analyzer Target Analyzer ECM Suite > --- WEAPON (2) ------- (None) > --- INVENTORY (5) ---- Ion Engine Light Treads Light Treads Aluminum Leg Improved Terrain Scanner Peak State ------------ > --- POWER ------------ Ion Engine > --- PROPULSION ------- Wheel Compact Wheel > --- UTILITY ---------- Small Storage Unit Seismic Detector > --- WEAPON ----------- EM Pulse Gun Light Assault Rifle > --- INVENTORY -------- Ion Engine Light Treads Light Treads Aluminum Leg Aluminum Leg Improved Terrain Scanner Small Laser Grenade Launcher [Rating: 8] Favorites ----------- Power Ion Engine Engine Ion Engine Propulsion Wheel Wheel Wheel Utility Small Storage Unit Device Seismic Detector Storage Small Storage Unit Processor Target Analyzer Weapon Light Assault Rifle Energy Gun EM Pulse Gun Ballistic Gun Light Assault Rifle Launcher Grenade Launcher Build | -11 -10 -10 -7 -5 ------- Run | Yrd Mat Sub Scr Fac Slots Evolved 10 | . . . . 10 Power 1 | . . . . 1 Propulsion 4 | . . . . 4 Utility 5 | . . . . 5 Weapon . | . . . . . Parts Attached 12 | 7 . . . 5 Power 1 | 1 . . . . Engine 1 | 1 . . . . Core . | . . . . . Reactor . | . . . . . Propulsion 2 | 2 . . . . Treads . | . . . . . Leg . | . . . . . Wheel 2 | 2 . . . . Hover . | . . . . . Flight . | . . . . . Utility 5 | 2 . . . 3 Device 2 | 1 . . . 1 Storage 1 | 1 . . . . Processor 2 | . . . . 2 Hackware . | . . . . . Protection . | . . . . . Artifact . | . . . . . Weapon 4 | 2 . . . 2 Energy Gun 2 | 1 . . . 1 Energy Cannon . | . . . . . Ballistic Gun 1 | 1 . . . . Ballistic Cannon . | . . . . . Launcher 1 | . . . . 1 Special Weapon . | . . . . . Impact Weapon . | . . . . . Slashing Weapon . | . . . . . Piercing Weapon . | . . . . . Special Melee Weapon . | . . . . . Unidentified Prototypes . | . . . . . Corrupted Parts 1 | 1 . . . . System Corruption 1 | 1 . . . . Parts Lost 8 | . . . . 8 Power 1 | . . . . 1 Propulsion 2 | . . . . 2 Utility 1 | . . . . 1 Weapon 4 | . . . . 4 Highest Loss Streak 8 | . . . . 8 To Critical Strikes . | . . . . . Average Backups 7 | 4 7 8 8 6 Power . | . 1 1 1 1 Propulsion 2 | 2 3 3 3 3 Utility 1 | . 1 2 2 1 Weapon 1 | . 1 2 2 . Tool/Special . | . . . . . Unused Backups 6 | . 1 . . 5 Power 1 | . . . . 1 Propulsion 4 | . 1 . . 3 Utility 1 | . . . . 1 Weapon . | . . . . . Tool/Special . | . . . . . Average Slot Usage (%) 84 | . 98 100 100 22 Engine 11 | . 14 14 14 1 Wheel 22 | . 27 28 28 3 Device 11 | . 14 14 14 3 Storage 11 | . 14 14 14 2 Energy Gun 11 | . 14 14 14 2 Ballistic Gun 11 | . 14 14 14 1 Peak Build Rating 8 | 7 8 8 8 8 Average Rating 7 | 5 7 8 8 5 On Entrance 6 | . 7 8 8 8 Avg Prop Armor Cover (%) . | . . . . . Naked Turns . | . . . . . Heaviest Build 14 | 14 14 14 14 14 Greatest Support 26 | 26 26 26 26 26 Greatest Overweight (x) 1 | 1 1 . . 1 Average Overweight (x) . | . . . . . Largest Inventory Capacity 8 | 8 8 8 8 8 Average Capacity 7 | 7 8 8 8 6 Most Carried 8 | 7 8 8 8 8 Average Carried 7 | 4 7 8 8 6 Final Capacity 8 | 8 8 8 8 5 Final Carried 8 | 7 8 8 8 5 Class Distribution -------------------- 100% | Mutant Dominant Class ---------------- Mutant | -10/Materials Mutant | -10/Subcaves Mutant | -7/Scraptown Mutant | -5/Factory Resources | -11 -10 -10 -7 -5 ----------- Run | Yrd Mat Sub Scr Fac Matter Collected 296 | 296 . . . . Remotely . | . . . . . Salvage Created 166 | 126 . . . 40 Parts 9 | 5 . . . 4 Haulers Intercepted . | . . . . . Recyclers Shooed 1 | 1 . . . . Parts Field Recycled . | . . . . . Retrieved Matter . | . . . . . Parts Self-Destructed . | . . . . . Prevented . | . . . . . Parts Restored . | . . . . . Kills | -11 -10 -10 -7 -5 ------- Run | Yrd Mat Sub Scr Fac Combat Hostiles Destroyed 3 | . . . . 3 AOE 3 | . . . . 3 Classes Destroyed 4 | 2 . . . 2 Tunneler 1 | 1 . . . . Recycler 1 | 1 . . . . Mechanic 1 | . . . . 1 Swarmer 3 | . . . . 3 Best Kill Streak 4 | 2 . . . 4 Combat Bots Only 3 | . . . . 3 Max Kills in Single Turn 2 | 1 . . . 2 Gunslinging . | . . . . . Exploded 2 | . . . . 2 Melee . | . . . . . Uniques/NPCs Destroyed . | . . . . . Combat | -11 -10 -10 -7 -5 -------- Run | Yrd Mat Sub Scr Fac Hostile Shots Fired 64 | . . . . 64 Missed 16 | . . . . 16 Hits 48 | . . . . 48 Projectile 48 | . . . . 48 Damage Taken 870 | . . 44 . 826 Core 405 | . . 24 . 381 Absorbed by Shields . | . . . . . Core Remaining (%) 95 | 100 . . 90 . Volleys Fired 26 | 6 5 . . 15 Largest 2 | 2 2 . . 2 Hottest 60 | 60 60 . . 60 Shots Fired 42 | 12 10 . . 20 Gun 39 | 12 10 . . 17 Cannon . | . . . . . Launcher 3 | . . . . 3 Special . | . . . . . Kinetic 18 | 6 5 . . 7 Thermal 5 | . . . . 5 Explosive 3 | . . . . 3 Electromagnetic 16 | 6 5 . . 5 Robot Hit Streak 7 | 7 2 . . 3 Robot Miss Streak 4 | 1 2 . . 4 Penetration Max . | . . . . . Secondary Targets . | . . . . . Shots Hit Robots 22 | 9 4 . . 9 Core Hits 14 | 4 2 . . 8 Critical Kills . | . . . . . Critical Parts Destroyed . | . . . . . Critical Strikes 2 | 2 . . . . Corrupt 2 | 2 . . . . Melee Attacks . | . . . . . Impact . | . . . . . Slashing . | . . . . . Piercing . | . . . . . Sneak Attacks . | . . . . . Combat Hostiles . | . . . . . Follow-up Attacks . | . . . . . Damage Inflicted 522 | 97 42 . . 383 Guns 194 | 97 41 . . 56 Cannons . | . . . . . Explosions 321 | . . . . 321 Melee . | . . . . . Ramming 7 | . 1 . . 6 Kinetic 61 | 27 21 . . 13 Thermal 21 | . . . . 21 Explosive 321 | . . . . 321 Electromagnetic 112 | 70 20 . . 22 Impact . | . . . . . Slashing . | . . . . . Piercing . | . . . . . Highest Corruption 2 | 1 2 2 2 . Average Corruption 1 | 1 1 2 2 . Corruption Purged . | . . . . . Corruption Blocked . | . . . . . Effects 5 | 1 1 1 2 . Message Errors 4 | 1 . 1 2 . Heat Flow Errors 1 | . 1 . . . Overload Shots . | . . . . . Overflow Damage 18 | . . . . 18 Projectiles . | . . . . . Explosions 18 | . . . . 18 Melee . | . . . . . Knockbacks . | . . . . . Impact . | . . . . . Kinetic . | . . . . . Secondary . | . . . . . Self-Inflicted Damage 108 | . . . . 108 Shots 3 | . . . . 3 Rammed 4 | . 1 . . 3 Targets Rammed 4 | . 1 . . 3 Kicked . | . . . . . Crushed . | . . . . . Highest Temperature 93 | 40 93 . . . Average Temperature 27 | 26 29 . . . Received Heat Transfer . | . . . . . Siege Activations . | . . . . . Martial Activations . | . . . . . Shielding Activations . | . . . . . Robots Disrupted . | . . . . . Combat Hostiles . | . . . . . Robots Corrupted . | . . . . . Combat Hostiles . | . . . . . Parts Fried . | . . . . . Impact Corruptions . | . . . . . Robots Melted . | . . . . . Combat Hostiles . | . . . . . Parts Melted . | . . . . . Heat Transferred 50 | . . . . 50 Parts Sabotaged . | . . . . . Parts Stolen . | . . . . . Parts Stripped . | . . . . . Power Chain Reactions . | . . . . . Alert | -11 -10 -10 -7 -5 ------- Run | Yrd Mat Sub Scr Fac Maximum Alert Level . | . . . . . Low Security (%) 100 | 100 100 . . 100 Level 1 . | . . . . . Level 2 . | . . . . . Level 3 . | . . . . . Level 4 . | . . . . . Level 5 . | . . . . . High Security . | . . . . . Max Security . | . . . . . Peak Influence 93 | 5 . . . 93 Initial . | . . . . . Average 14 | 1 . . . 43 Influence Increases 171 | 10 . . . 161 Destroy 0b10 Robot/C 60 | . . . . 60 Destroy 0b10 Robot/NC 15 | 10 . . . 5 Destroy Leader 10 | . . . . 10 Destroy Structure 26 | . . . . 26 Lose Combat Pursuer 60 | . . . . 60 Influence Decreases 120 | 10 . . . 110 Time Decay 50 | 10 . . . 40 Lost Part 70 | . . . . 70 Squads Dispatched 1 | . . . . 1 Investigation . | . . . . . Extermination . | . . . . . Reinforcement 1 | . . . . 1 Assault . | . . . . . Garrison . | . . . . . Intercept . | . . . . . Searches Triggered . | . . . . . Construction Impeded 1 | . . . . 1 Haulers Reinforced . | . . . . . Active Scanning Responses . | . . . . . Cargo Convoy Interrupts . | . . . . . Stealth | -11 -10 -10 -7 -5 --------- Run | Yrd Mat Sub Scr Fac Distress Signals . | . . . . . Communications Jammed . | . . . . . Distress Signals . | . . . . . Times Spotted 13 | . 3 . . 10 Peak Tracking Total 5 | . 3 . . 5 Tactical Retreats 2 | . . . . 2 ECM-based Alert Blocks 2 | . . . . 2 Traps | -11 -10 -10 -7 -5 ------- Run | Yrd Mat Sub Scr Fac Traps Triggered 2 | . 1 1 . . Indirectly . | . . . . . Trap Hack Attempts . | . . . . . Triggered . | . . . . . Disarmed . | . . . . . Reprogrammed . | . . . . . Reused . | . . . . . Traps Extracted . | . . . . . Installed . | . . . . . Triggered . | . . . . . Machines | -11 -10 -10 -7 -5 ---------- Run | Yrd Mat Sub Scr Fac Machines Disabled . | . . . . . Max in Single Turn . | . . . . . Machines Repaired . | . . . . . Machines Dismantled . | . . . . . Machines Sabotaged . | . . . . . Overloaded Fab Kills . | . . . . . Hacking | -11 -10 -10 -7 -5 --------- Run | Yrd Mat Sub Scr Fac Machines Accessed 1 | . 1 . . . Terminals 1 | . 1 . . . Fabricators . | . . . . . Repair Stations . | . . . . . Recycling Units . | . . . . . Scanalyzers . | . . . . . Garrison Access . | . . . . . Total Hacks 3 | . 3 . . . Successful . | . . . . . Failed 3 | . 3 . . . Catastrophic . | . . . . . Database Lockouts . | . . . . . Manual 3 | . 3 . . . Terminals 3 | . 3 . . . Fabricators . | . . . . . Repair Stations . | . . . . . Recycling Units . | . . . . . Scanalyzers . | . . . . . Garrison Access . | . . . . . Terminal Hacks . | . . . . . Fabricator Hacks . | . . . . . Repair Station Hacks . | . . . . . Recycling Unit Hacks . | . . . . . Scanalyzer . | . . . . . Garrison Access Hacks . | . . . . . Unauthorized Hacks . | . . . . . Terminals . | . . . . . Fabricators . | . . . . . Repair Stations . | . . . . . Recycling Units . | . . . . . Scanalyzers . | . . . . . Garrison Access . | . . . . . Data Cores Recovered . | . . . . . Used . | . . . . . Hacking Detections 1 | . 1 . . . Full Trace Events 1 | . 1 . . . Feedback Events 1 | . 1 . . . Corruption 1 | . 1 . . . Feedback Blocked . | . . . . . Robot Schematics Acquired . | . . . . . Robots Built . | . . . . . Authchips . | . . . . . Time . | . . . . . Total Robot Build Rating . | . . . . . Part Schematics Acquired . | . . . . . Parts Built . | . . . . . Authchips . | . . . . . Time . | . . . . . Total Part Build Rating . | . . . . . Part Studies Acquired . | . . . . . Parts Repaired . | . . . . . Time . | . . . . . Parts Recycled . | . . . . . Recycled Matter . | . . . . . Retrieved Matter . | . . . . . Retrieved Components . | . . . . . Parts Scanalyzed . | . . . . . Part Schematics Acquired . | . . . . . Parts Damaged . | . . . . . Bothacking | -11 -10 -10 -7 -5 ------------ Run | Yrd Mat Sub Scr Fac Used RIF Installer . | . . . . . Robots Hacked . | . . . . . Non-combat . | . . . . . Combat . | . . . . . Robot Hacks Applied . | . . . . . Relay Couplers Released . | . . . . . Fabnet Peak Effective % . | . . . . . Robots Rewired . | . . . . . Allies Hacked . | . . . . . Hacks Repelled . | . . . . . Allies | -11 -10 -10 -7 -5 -------- Run | Yrd Mat Sub Scr Fac Total Allies . | . . . . . Largest Group . | . . . . . Highest-Rated Group . | . . . . . Highest-Rated Ally . | . . . . . Total Orders . | . . . . . Ally Attacks . | . . . . . Total Damage . | . . . . . Kills . | . . . . . Allies Corrupted . | . . . . . Allies Melted . | . . . . . Intel | -11 -10 -10 -7 -5 ------- Run | Yrd Mat Sub Scr Fac Active Infowar (turns) 607 | 30 139 105 252 81 Seismic 550 | 30 139 105 252 24 ECM 57 | . . . . 57 Robot Analysis Total . | . . . . . Derelict Logs Recovered . | . . . . . Drone Launches . | . . . . . Drone Recoveries . | . . . . . Exploration | -11 -10 -10 -7 -5 ------------- Run | Yrd Mat Sub Scr Fac Turns Passed 713 | 99 139 105 252 118 Spaces Moved 650 | 72 130 116 280 52 Core 33 | 8 . . . 25 Treads . | . . . . . Legs . | . . . . . Wheels 617 | 64 130 116 280 27 Hover . | . . . . . Flight . | . . . . . Fastest Speed 50 | 50 90 90 90 50 Average Speed 88 | 86 90 90 90 71 Slowest Speed 100 | 100 95 90 90 95 Overloaded Moves . | . . . . . Propulsion Burnouts . | . . . . . Robots Hopped . | . . . . . Potential Cave-ins . | . . . . . Cave-ins Triggered . | . . . . . Exploration Rate (%) 14 | 4 23 8 34 2 Regions Visited 4 Branch Regions 2 Pre-discovered Areas . | . . . . . Known Exits Taken . | . . . . . Unknown Exits Taken 4 | 1 1 1 1 . Scrap Searched . | . . . . . Spaces Dug . | . . . . . Terrain Destroyed 13 | . . . . 13 Melee . | . . . . . Projectile . | . . . . . AOE 13 | . . . . 13 Terrain Rammed . | . . . . . Walls Destroyed . | . . . . . Machines Disabled . | . . . . . Actions | -11 -10 -10 -7 -5 --------- Run | Yrd Mat Sub Scr Fac Total 742 | 94 141 115 279 113 Wait 37 | . . . . 37 Move 646 | 71 129 115 279 52 Hop . | . . . . . Pick Up 10 | 8 2 . . . Fast Attach 13 | 8 3 . . 2 Attach 4 | 1 . . . 3 Detach . | . . . . . Swap . | . . . . . Drop 2 | . 1 . . 1 Fire 26 | 6 5 . . 15 Melee . | . . . . . Ram 4 | . 1 . . 3 Kick . | . . . . . Crush . | . . . . . Escape Stasis . | . . . . . Rewire . | . . . . . Trap . | . . . . . Miscellaneous . | . . . . . Route ------- -11/Scrapyard -10/Materials -10/Subcaves -7/Scraptown -5/Factory History --------- Turn | Location | Event 2 | -11/Scrapyard | Met Revision 17 19 | -11/Scrapyard | Discovered new exit (range 16) 100 | -11/Scrapyard | Entered Materials 155 | -10/Materials | Discovered new exit (range 6) 239 | -10/Materials | Entered Subcaves 240 | -10/Subcaves | Approached by a straggling Scientist 317 | -10/Subcaves | Build established: Mutant 344 | -10/Subcaves | Entered Scraptown 588 | -7/Scraptown | Discovered new exit (range 9) 596 | -7/Scraptown | Entered Factory 596 | -5/Factory | Evolved 10 slots: Power x1, Propulsion x4, Utility x5 686 | -5/Factory | Lost 8 parts (1p2n1u4w) 714 | -5/Factory | Self-destructed Last Messages --------------- S-27 Virus destroyed. Destroyed VTOL Module. S-27 Virus destroyed. M-13 Machinist destroyed. S-27 Virus destroyed. Grenade Launcher destroyed. Destroyed Grenade Launcher. U-05 Engineer lays Concrete. U-05 Engineer builds a Wall. U-05 Engineer lays Concrete. U-05 Engineer builds a Wall. Destroyed VTOL Module. Sml. Laser destroyed. U-05 Engineer builds a Wall. Dropped Sml. Storage Unit. Slammed into U-05 Engineer. ALERT: Construction progress impeded, dispatching reinforcements to local area. Slammed into U-05 Engineer. Acquired Target Analyzer. Map ----- +----------------------------------------------------+ | ?????????????????????????????????????????????????? | | ?????????????????????????????????????????????????? | | ?????????????????????????????????????????????????? | | ?????????????????????????????????????????????????? | | ?????????????????????????????????????????????????? | | ?????????????????????????????????????????????????? | | ?????????????????????????????????????????????????? | | ?????????????????????????????????????????????????? | | ?????????????????????????????????????????????????? | | ?????????????????????????????????????????????????? | | ?????????????????????????????????????????????????? | | ??????????????????? ?????????????????????????????? | | ??????????????????? ?????????????????????????????? | | ??????????????????? ?????????????????????????????? | | ??????????????????? ?????????????????????????????? | | ??????????????????? ?????????????????????????????? | | ??????????????????? ?????????????????????????????? | | ??????????????????? ?????????????????????????????? | | ??????????????????# #????????????????????????????? | | ??????????????????# #??##########????????????????? | | ??????????????????# #??# #????????????????? | | ??????????????????# #??# """ #????????????????? | | ??????????????????# #??# """ #????????????????? | | ??????????????????# #??# """ #????????????????? | | ??????????????????# #??# #????????????????? | | ????????###+####### #### @!! #????????????????? | | ????????# + !! #????????????????? | | ????????# ########## !! #????????????????? | | ????????# ##???????# #????????????????? | | ????????+ T#???????##########????????????????? | | ????????# #???#################?????????????? | | ????????# ##???# # #?????????????? | | ????????# #??### # #?????????????? | | ????????# #??# """ """ # #?????????????? | | ????????# ###### """ """ + +?????????????? | | ????????# %""" """ # #?????????????? | | ?" ##### ! # #?????????????? | | ###### #??## ! # #?????????????? | | ????????# #???# # #?????????????? | | ????????# #???# ###### #?????????????? | | ????????# ??? ??? #?????????????? | | ????????# ??? ?? #?????????????? | | ????????# """"??" #?????????????? | | ????????+ """"??" !! #?????????????? | | ????????# """"""" ! #?????????????? | | ????????# ?????"" ! #?????????????? | | ????????# ?????? #?????????????? | | ????????# ??????? "" ?????????????? | | ????????? ?????? T" ########?????????????? | | ????????????????? [ "?? ?????????????????????? | +----------------------------------------------------+ Best States ------------- Heat Dissipation 40 Energy Generation 10 Energy Capacity 250 Matter Stores 300 Matter Capacity 300 Sight Range 16 Terrain Scan Density 10 ECM Strength 1 Evasion (%) 50 Target Analysis 7 Item Schematics ----------------- None Robot Schematics ------------------ None Fabricated ------------ Nothing Repaired ---------- Nothing Studied --------- None Alien Tech Used ----------------- None Achievements -------------- None Challenges ------------ None Game ------ Seed AerolevConcussiveMonowheel Manual? 0 Play Time 00:09:50 Cumulative 8.4 hours Start 2026.03.03 @ 01:27:33 End 2026.03.03 @ 01:35:01 Sessions 1 Manual Loads 0 Difficulty Rogue Special Mode None Game No. 34 Rogue 34 Adventurer 0 Explorer 0 Win Type - Total 0 Types 0/0/0/0/0/0/0/0/0/0 Lore% 3 Gallery% 10 Achievement% 13 Wizard Run 0 Options --------- Layout 1 ASCII 0 Keyboard 0 Movement Numpad Keybinds 0 Fullscreen 2 Font 24/Terminus Map View 50x35 Zoom Use 0% Tactical HUD 0 Map Filters NONE Filters NONE Steam 1 RUN: c3bdaa25-bcfc-4292-9172-9f8a8460bb5e